fUST/lending_fUST_20250722
["ID","MTS","AMOUNT","RATE_DAILY","PERIOD"]
[374007662,1753179047799,-151.0,0.00022,7]
[374007663,1753179047928,-151.0,0.00022,7]
[374007664,1753179047938,-1832.7,0.00022,7]
[374007665,1753179047950,-4169.4,0.00022,7]
[374007666,1753179047960,-178.0,0.00022,2]
[374007667,1753179047970,-168.0,0.00022,2]
[374007668,1753179047980,-351.0,0.00022,2]
[374007669,1753179047990,-2906.05818395,0.00022038,6]
[374007670,1753179048000,-460.0,0.00022065,2]
[374007671,1753179048010,-617.81,0.00022066,2]
[374007672,1753179048020,-485.34,0.00022066,2]
[374007673,1753179048030,-965.64,0.00022066,2]
[374007674,1753179048040,-497.23,0.00022068,2]
[374007675,1753179048050,-694.45,0.00022068,2]
[374007676,1753179048061,-1732.25,0.00022068,2]
[374007677,1753179048071,-544.45,0.00022068,2]
[374007678,1753179048081,-460.0,0.0002207,2]
[374007679,1753179048092,-351.0,0.00022192,7]
[374007680,1753179048102,-1000.0,0.000223,2]
[374007681,1753179048112,-2906.05818395,0.00022314,7]
[374007682,1753179048122,-173.76,0.00022339,2]
[374007683,1753179048133,-617.81,0.0002234,2]
[374007684,1753179048143,-485.34,0.0002234,2]
[374007685,1753179048153,-965.64,0.0002234,2]
[374007687,1753179048163,-497.23,0.00022342,2]
[374007689,1753179048174,-694.45,0.00022342,2]
[374007692,1753179048185,-1732.25,0.00022342,2]
[374007694,1753179048195,-544.45,0.00022342,2]
[374007696,1753179048204,-366.8,0.00022344,2]
[374007698,1753179048214,-151.0,0.00022345,7]
[374007700,1753179048224,-151.0,0.00022345,7]
[374007702,1753179048234,-2992.0,0.00022465,2]
[374007704,1753179048244,-12497.19,0.000225,7]
[374007706,1753179048254,-214.6393183,0.000225,7]
[374007708,1753179048264,-160.0,0.000225,7]
[374007710,1753179048275,-818.23,0.00022526,5]
[374007712,1753179048285,-223.0315306,0.00022557,2]
[374007714,1753179048295,-560.37646743,0.00022573,2]
[374007716,1753179048305,-2906.05818395,0.0002259,7]
[374007718,1753179048315,-174.569676,0.00022603,2]
[374007720,1753179048326,-617.81,0.00022614,2]
[374007722,1753179048336,-485.34,0.00022614,2]
[374007724,1753179048346,-965.64,0.00022614,2]
[374007726,1753179048356,-497.23,0.00022616,2]
[374007728,1753179048366,-694.45,0.00022616,2]
[374007730,1753179048376,-1732.25,0.00022616,2]
[374007732,1753179048386,-544.45,0.00022616,2]
[374007734,1753179048396,-151.0,0.00022617,7]
[374007736,1753179048406,-169.0,0.00022712,8]
[374007738,1753179048416,-584.45,0.00022722,3]
[374007740,1753179048426,-501.42269042,0.00022756,2]
[374007742,1753179048436,-1000.0,0.000228,2]
[374007744,1753179048446,-584.45,0.00022822,2]
[374007747,1753179048460,-2906.05818395,0.00022866,8]
[374007749,1753179048469,-968.0,0.00022873,2]
[374007751,1753179048480,-407.0,0.00022873,2]
[374007753,1753179048490,-617.81,0.00022888,2]
[374007755,1753179048504,-485.34,0.00022888,2]
[374007757,1753179048513,-965.64,0.00022888,2]
[374007759,1753179048523,-497.23,0.0002289,2]
[374007761,1753179048533,-694.45,0.0002289,2]
[374007763,1753179048545,-1732.25,0.0002289,2]
[374007765,1753179048556,-544.45,0.0002289,2]
[374007767,1753179048566,-584.45,0.00022922,5]
[374007769,1753179048578,-877.72466976,0.0002299,2]
[374007770,1753179048588,-100000.0,0.0002299,2]
[374007773,1753179048599,-922.91,0.00023,2]
[374007775,1753179048609,-922.91,0.00023,2]
[374007777,1753179048620,-922.91,0.00023,2]
[374007779,1753179048631,-922.91,0.00023,2]
[374007781,1753179048641,-922.91,0.00023,2]
[374007783,1753179048651,-922.91,0.00023,2]
[374007785,1753179048662,-922.91,0.00023,2]
[374007787,1753179048671,-922.91,0.00023,2]
[374007789,1753179048681,-922.91,0.00023,2]
[374007791,1753179048691,-922.91,0.00023,2]
[374007792,1753179048704,-922.91,0.00023,2]
[374007794,1753179048714,-922.91,0.00023,2]
[374007796,1753179048724,-922.91,0.00023,2]
[374007799,1753179048735,-922.91,0.00023,2]
[374007801,1753179048746,-922.91,0.00023,2]
[374007802,1753179048756,-922.91,0.00023,2]
[374007804,1753179048766,-922.91,0.00023,2]
[374007806,1753179048777,-922.91,0.00023,2]
[374007808,1753179048788,-922.91,0.00023,2]
[374007811,1753179048799,-922.91,0.00023,2]
[374007813,1753179048810,-922.91,0.00023,2]
[374007815,1753179048821,-922.91,0.00023,2]
[374007817,1753179048831,-922.91,0.00023,2]
[374007819,1753179048841,-922.91,0.00023,2]
[374007821,1753179048851,-922.91,0.00023,2]
[374007823,1753179048862,-922.91,0.00023,2]
[374007825,1753179048872,-922.91,0.00023,2]
[374007827,1753179048883,-922.91,0.00023,2]
[374007829,1753179048893,-922.91,0.00023,2]
[374007831,1753179048903,-922.91,0.00023,2]
[374007833,1753179048914,-922.91,0.00023,2]
[374007835,1753179048924,-922.91,0.00023,2]
[374007837,1753179048934,-922.91,0.00023,2]
[374007839,1753179048948,-466.88,0.00023,2]
[374007840,1753179048959,-5942.32667063,0.00023,7]
[374007842,1753179048968,-1740.92,0.00023,2]
[374007845,1753179048979,-160.0,0.00023,2]
[374007847,1753179048989,-351.0,0.00023014,7]
[374007849,1753179048999,-584.45,0.00023022,7]
[374007851,1753179049010,-458.06878348,0.000231,2]
[374007853,1753179049021,-12159.45462487,0.00023116,2]
[374007855,1753179049032,-584.45,0.00023122,4]
[374007857,1753179049042,-2906.05818395,0.00023141,8]
[374007859,1753179049051,-617.94,0.00023162,2]
[374007861,1753179049061,-485.55,0.00023162,2]
[374007863,1753179049072,-965.76,0.00023162,2]
[374007865,1753179049086,-497.45,0.00023164,2]
[374007867,1753179049097,-694.50990931,0.00023164,2]
[374007869,1753179049107,-1732.35744083,0.00023164,2]
[374007871,1753179049118,-544.61,0.00023164,2]
[374007873,1753179049129,-4169.4,0.000232,7]
[374007875,1753179049139,-584.47296878,0.00023222,6]
[374007877,1753179049151,-154.473695,0.00023265,3]
[374007880,1753179049161,-168.0,0.00023297,2]
[374007882,1753179049171,-1832.7,0.000233,7]
[374007884,1753179049181,-1000.0,0.000233,2]
[374007886,1753179049191,-429.6101251,0.0002337,2]
[374007888,1753179049206,-196.279069,0.0002341,8]
[374007890,1753179049217,-150.103,0.00023413,2]
[374007892,1753179049228,-150.0,0.00023413,2]
[374007894,1753179049238,-150.0,0.00023413,2]
[374007896,1753179049249,-648.0,0.00023413,2]
[374007898,1753179049259,-2157.0,0.00023413,2]
[374007900,1753179049269,-2906.05818395,0.00023417,9]
[374007902,1753179049279,-151.0,0.00023444,6]
[374007904,1753179049289,-2200.0,0.00023524,2]
[374007905,1753179049298,-151.0,0.00023524,7]
[374007907,1753179049309,-560.37646743,0.00023562,2]
[374007910,1753179049320,-154.473695,0.00023575,2]
[374007912,1753179049330,-12497.19,0.000236,7]
[374007914,1753179049341,-4019.81658436,0.00023616,2]
[374007916,1753179049351,-154.473695,0.00023635,14]
[374007918,1753179049361,-500.0,0.0002365,2]
[374007920,1753179049372,-480.63814496,0.0002365,2]
[374007922,1753179049381,-500.0,0.0002365,2]
[374007924,1753179049391,-500.0,0.0002365,2]
[374007926,1753179049401,-2906.05818395,0.00023693,9]
[374007928,1753179049410,-500.0,0.00023721,2]
[374007930,1753179049421,-151.0,0.00023721,2]
[374007932,1753179049431,-500.0,0.00023721,2]
[374007934,1753179049441,-151.0,0.00023721,2]
[374007936,1753179049455,-500.0,0.00023721,2]
[374007938,1753179049465,-151.0,0.00023721,2]
[374007940,1753179049475,-151.0,0.00023721,2]
[374007942,1753179049485,-151.0,0.00023721,2]
[374007944,1753179049495,-151.0,0.00023721,2]
[374007946,1753179049508,-151.0,0.00023721,2]
[374007948,1753179049519,-151.0,0.00023721,2]
[374007950,1753179049529,-151.0,0.00023721,2]
[374007952,1753179049540,-151.0,0.00023721,2]
[374007954,1753179049551,-500.0,0.00023721,2]
[374007956,1753179049561,-500.0,0.00023721,2]
[374007958,1753179049571,-151.0,0.00023721,2]
[374007960,1753179049582,-151.0,0.00023721,2]
[374007962,1753179049592,-288.12379564,0.00023721,2]
[374007964,1753179049602,-151.16635181,0.00023721,2]
[374007966,1753179049611,-151.15357884,0.00023721,2]
[374007968,1753179049621,-151.0,0.00023721,2]
[374007970,1753179049631,-151.0,0.00023721,2]
[374007972,1753179049641,-151.0,0.00023721,2]
[374007974,1753179049651,-151.0,0.00023721,2]
[374007976,1753179049662,-500.0,0.00023721,2]
[374007978,1753179049672,-151.0,0.00023721,2]
[374007980,1753179049682,-1000.0,0.000238,2]
[374007982,1753179049693,-500.52040575,0.00023873,2]
[374007984,1753179049707,-151.0,0.00023878,7]
[374007986,1753179049718,-630.73670091,0.00023887,2]
[374007988,1753179049729,-88797.70873912,0.00023888,2]
[374007990,1753179049739,-514.18979703,0.00023888,2]
[374007992,1753179049749,-151.0,0.00023888,7]
[374007994,1753179049758,-151.352868,0.00023888,7]
[374007996,1753179049768,-151.0,0.00023888,7]
[374007998,1753179049778,-151.0,0.00023888,7]
[374008000,1753179049787,-300.366,0.00023893,2]
[374008003,1753179049797,-350.67,0.00023895,2]
[374008005,1753179049806,-1348.14780521,0.00023896,2]
[374008006,1753179049816,-817.74807594,0.000239,2]
[374008009,1753179049826,-682.65,0.00023903,2]
[374008011,1753179049836,-600.0,0.00023904,2]
[374008013,1753179049845,-500.61,0.0002391,2]
[374008015,1753179049855,-1137.75,0.00023924,5]
[374008017,1753179049865,-231.28369723,0.00023926,2]
[374008019,1753179049874,-204.564135,0.00023928,7]
[374008021,1753179049884,-204.564135,0.00023928,7]
[374008023,1753179049894,-151.0,0.0002393,7]
[374008025,1753179049904,-358.0,0.00023942,2]
[374008027,1753179049914,-282.993199,0.00023957,2]
[374008029,1753179049924,-358.0,0.00023966,2]
[374008031,1753179049933,-2906.05818395,0.00023969,10]
[374008033,1753179049943,-502.09093911,0.00023973,2]
[374008035,1753179049956,-501.01581911,0.00023973,2]
[374008037,1753179049966,-354.56381647,0.00023973,2]
[374008039,1753179049978,-500.0,0.00023973,2]
[374008041,1753179049987,-358.0,0.00023987,2]
[374008043,1753179049997,-151.0,0.0002399,7]
[374008045,1753179050007,-151.0,0.0002399,7]
[374008047,1753179050017,-151.0,0.0002399,7]
[374008049,1753179050026,-151.0,0.0002399,7]
[374008051,1753179050035,-151.0,0.0002399,7]
[374008053,1753179050045,-151.0,0.0002399,7]
[374008055,1753179050055,-151.0,0.0002399,7]
[374008057,1753179050072,-500.0,0.00023995,2]
[374008060,1753179050082,-151.0,0.00023995,2]
[374008062,1753179050092,-500.0,0.00023995,2]
[374008063,1753179050101,-151.0,0.00023995,2]
[374008066,1753179050111,-608.56793858,0.00023995,2]
[374008068,1753179050121,-151.0,0.00023995,2]
[374008070,1753179050131,-201.04954806,0.00023995,2]
[374008071,1753179050140,-151.0,0.00023995,2]
[374008072,1753179050151,-151.0,0.00023995,2]
[374008073,1753179050160,-151.0,0.00023995,2]
[374008074,1753179050170,-151.0,0.00023995,2]
[374008075,1753179050180,-151.0,0.00023995,2]
[374008076,1753179050189,-500.0,0.00023995,2]
[374008077,1753179050201,-500.0,0.00023995,2]
[374008078,1753179050211,-151.0,0.00023995,2]
[374008079,1753179050220,-151.0,0.00023995,2]
[374008080,1753179050231,-500.0,0.00023995,2]
[374008081,1753179050240,-151.0,0.00023995,2]
[374008083,1753179050250,-358.0,0.00023999,2]
[374008084,1753179050260,-160.0,0.00024,7]
[374008086,1753179050270,-160.0,0.00024,10]
[374008088,1753179050280,-160.0,0.00024,7]
[374008090,1753179050290,-6316.0,0.00024,30]
[374008092,1753179050303,-160.0,0.00024,7]
[374008094,1753179050312,-160.0,0.00024,10]
[374008096,1753179050322,-160.0,0.00024,7]
[374008098,1753179050332,-160.0,0.00024,10]
[374008100,1753179050341,-189.131514,0.00024,7]
[374008102,1753179050351,-151.0,0.00024,7]
[374008104,1753179050360,-52353.27,0.00024,2]
[374008106,1753179050370,-151.0,0.00024,7]
[374008108,1753179050380,-154.473695,0.00024,14]
[374008110,1753179050389,-150.0,0.00024,7]
[374008112,1753179050399,-160.0,0.00024,7]
[374008114,1753179050409,-215.80012421,0.00024,7]
[374008116,1753179050419,-526.07605158,0.00024,7]
[374008118,1753179050429,-231.06963584,0.00024,7]
[374008120,1753179050438,-839.90542673,0.00024,7]
[374008122,1753179050450,-500.61,0.0002401,2]
[374008124,1753179050459,-1137.75,0.00024024,3]
[374008126,1753179050469,-500.0,0.00024027,30]
[374008129,1753179050479,-358.0,0.00024052,2]
[374008133,1753179050516,-1348.14780521,0.00024096,2]
[374008135,1753179050526,-500.61,0.0002411,2]
[374008137,1753179050535,-1137.75,0.00024124,7]
[374008139,1753179050546,-151.0,0.00024164,7]
[374008141,1753179050556,-151.0,0.00024164,7]
[374008143,1753179050565,-151.0,0.00024164,7]
[374008145,1753179050576,-352.0,0.00024164,7]
[374008147,1753179050586,-358.0,0.00024172,2]
[374008149,1753179050596,-1348.14780521,0.00024196,2]
[374008151,1753179050606,-1137.75,0.00024224,6]
[374008153,1753179050616,-2906.05818395,0.00024245,10]
[374008155,1753179050630,-800.0,0.00024245,2]
[374008157,1753179050639,-500.0,0.00024269,2]
[374008159,1753179050649,-151.0,0.00024269,2]
[374008161,1753179050659,-500.0,0.00024269,2]
[374008163,1753179050668,-151.0,0.00024269,2]
[374008165,1753179050678,-210.42481086,0.00024269,2]
[374008167,1753179050687,-151.0,0.00024269,2]
[374008169,1753179050697,-151.0,0.00024269,2]
[374008171,1753179050707,-151.0,0.00024269,2]
[374008173,1753179050717,-195.23984541,0.00024269,2]
[374008175,1753179050726,-349.0,0.00024269,2]
[374008177,1753179050736,-500.0,0.00024269,2]
[374008179,1753179050745,-201.45105498,0.00024269,2]
[374008181,1753179050755,-1348.14780521,0.00024296,2]
[374008183,1753179050764,-356.9458882,0.000243,12]
[374008185,1753179050774,-4169.4,0.000243,7]
[374008187,1753179050783,-151.0,0.000243,9]
[374008189,1753179050793,-160.0,0.000243,10]
[374008191,1753179050802,-215.80012421,0.000243,10]
[374008193,1753179050812,-1137.75,0.00024324,5]
[374008195,1753179050821,-216.87,0.00024324,10]
[374008196,1753179050830,-358.0,0.00024354,2]
[374008198,1753179050839,-10205.20562463,0.0002439,2]
[374008200,1753179050849,-1348.14780521,0.00024396,2]
[374008202,1753179050858,-1832.7,0.000244,7]
[374008204,1753179050868,-151.0,0.00024415,7]
[374008206,1753179050878,-1137.75,0.00024424,5]
[374008208,1753179050888,-356.409854,0.00024438,2]
[374008210,1753179050897,-159.8957685,0.00024438,2]
[374008212,1753179050907,-354.7403356,0.00024438,2]
[374008214,1753179050918,-178.204927,0.00024438,2]
[374008215,1753179050927,-178.204927,0.00024438,2]
[374008217,1753179050937,-153.0,0.00024438,2]
[374008219,1753179050949,-159.8957685,0.00024438,2]
[374008221,1753179050958,-159.8957685,0.00024438,2]
[374008223,1753179050967,-160.0,0.00024464,5]
[374008225,1753179050977,-1348.14780521,0.00024496,2]
[374008227,1753179050987,-200.0,0.000245,2]
[374008229,1753179050996,-643.0,0.000245,2]
[374008231,1753179051006,-2906.05818395,0.00024521,11]
[374008233,1753179051015,-1137.75,0.00024524,5]
[374008235,1753179051025,-500.0,0.00024543,2]
[374008237,1753179051035,-151.0,0.00024543,2]
[374008239,1753179051044,-151.0,0.00024543,2]
[374008241,1753179051053,-151.0,0.00024543,2]
[374008243,1753179051063,-222.72606211,0.00024543,2]
[374008245,1753179051075,-500.0,0.00024543,2]
[374008246,1753179051084,-560.37646743,0.0002455,2]
[374008248,1753179051094,-154.473695,0.00024567,3]
[374008250,1753179051104,-358.0,0.00024578,2]
[374008252,1753179051114,-1348.14780521,0.00024596,2]
[374008254,1753179051124,-151.0,0.000246,8]
[374008256,1753179051133,-1137.75,0.00024624,7]
[374008258,1753179051143,-358.0,0.00024644,2]
[374008260,1753179051153,-3388.87480334,0.0002465,2]
[374008262,1753179051163,-502.16621255,0.0002465,2]
[374008264,1753179051173,-151.0,0.0002465,7]
[374008266,1753179051183,-264744.68232627,0.0002465,2]
[374008268,1753179051193,-151.0,0.0002465,7]
[374008270,1753179051203,-151.0,0.0002465,7]
[374008272,1753179051212,-151.0,0.0002465,7]
[374008274,1753179051222,-151.0,0.0002465,7]
[374008276,1753179051232,-151.0,0.0002465,7]
[374008278,1753179051241,-151.0,0.0002465,7]
[374008280,1753179051250,-151.0,0.0002465,7]
[374008282,1753179051260,-151.0,0.0002465,7]
[374008284,1753179051270,-151.0,0.0002465,7]
[374008286,1753179051280,-151.0,0.0002465,7]
[374008288,1753179051289,-151.0,0.0002465,7]
[374008289,1753179051299,-151.0,0.0002465,7]
[374008292,1753179051308,-151.0,0.0002465,7]
[374008293,1753179051318,-151.0,0.0002465,7]
[374008295,1753179051328,-204.564135,0.0002465,7]
[374008297,1753179051337,-204.564135,0.0002465,7]
[374008299,1753179051347,-151.0,0.0002465,7]
[374008301,1753179051356,-151.0,0.0002465,7]
[374008303,1753179051367,-151.0,0.0002465,7]
[374008305,1753179051376,-151.0,0.0002465,7]
[374008307,1753179051386,-151.0,0.0002465,7]
[374008309,1753179051396,-151.0,0.0002465,7]
[374008311,1753179051405,-8137.979636,0.0002465,7]
[374008313,1753179051416,-8137.979636,0.0002465,7]
[374008315,1753179051425,-151.0,0.0002465,7]
[374008317,1753179051436,-151.0,0.0002465,7]
[374008319,1753179051445,-151.0,0.0002465,7]
[374008321,1753179051456,-151.0,0.0002465,7]
[374008323,1753179051466,-154.27548,0.0002465,7]
[374008325,1753179051476,-151.0,0.0002465,7]
[374008327,1753179051487,-151.0,0.0002465,7]
[374008329,1753179051499,-151.0,0.0002465,7]
[374008331,1753179051511,-151.0,0.0002465,7]
[374008333,1753179051521,-151.0,0.0002465,7]
[374008335,1753179051531,-151.0,0.0002465,7]
[374008337,1753179051543,-151.0,0.0002465,7]
[374008339,1753179051553,-151.576342,0.00024657,7]
[374008341,1753179051566,-541.71,0.00024657,2]
[374008343,1753179051576,-541.71,0.00024657,2]
[374008345,1753179051586,-541.71,0.00024657,2]
[374008347,1753179051596,-541.71,0.00024657,2]
[374008349,1753179051606,-541.71,0.00024657,2]
[374008351,1753179051616,-541.71,0.00024657,2]
[374008353,1753179051626,-541.71,0.00024657,2]
[374008355,1753179051636,-541.71,0.00024657,2]
[374008357,1753179051646,-541.71,0.00024657,2]
[374008359,1753179051656,-541.71,0.00024657,2]
[374008361,1753179051666,-541.71,0.00024657,2]
[374008363,1753179051675,-541.71,0.00024657,2]
[374008365,1753179051686,-541.71,0.00024657,2]
[374008367,1753179051696,-541.71,0.00024657,2]
[374008369,1753179051706,-541.71,0.00024657,2]
[374008371,1753179051716,-541.71,0.00024657,2]
[374008373,1753179051726,-541.71,0.00024657,2]
[374008375,1753179051736,-541.71,0.00024657,2]
[374008377,1753179051746,-541.71,0.00024657,2]
[374008379,1753179051755,-541.71,0.00024657,2]
[374008381,1753179051765,-541.71,0.00024657,2]
[374008384,1753179051775,-541.71,0.00024657,2]
[374008385,1753179051785,-541.71,0.00024657,2]
[374008386,1753179051795,-541.7866226,0.00024657,2]
[374008388,1753179051806,-200.0,0.00024658,2]
[374008390,1753179051816,-380.0,0.00024658,2]
[374008391,1753179051825,-200.0,0.00024658,15]
[374008393,1753179051835,-545.0,0.00024658,2]
[374008395,1753179051845,-151.42890889,0.00024658,2]
[374008397,1753179051854,-1348.14780521,0.00024696,2]
[374008398,1753179051864,-168.0,0.00024697,2]
[374008399,1753179051874,-152.276607,0.000247,7]
[374008400,1753179051884,-151.0,0.000247,7]
[374008401,1753179051893,-151.0,0.000247,7]
[374008402,1753179051903,-151.0,0.000247,7]
[374008403,1753179051913,-151.0,0.000247,7]
[374008404,1753179051923,-151.0,0.000247,7]
[374008405,1753179051933,-151.0,0.000247,7]
[374008406,1753179051943,-151.0,0.000247,7]
[374008407,1753179051953,-151.0,0.000247,7]
[374008408,1753179051963,-151.0,0.000247,7]
[374008409,1753179051973,-153.953666,0.000247,7]
[374008410,1753179051983,-151.0,0.000247,7]
[374008411,1753179051994,-151.0,0.000247,7]
[374008412,1753179052003,-204.564135,0.000247,7]
[374008413,1753179052013,-204.564135,0.000247,7]
[374008414,1753179052023,-151.0,0.000247,7]
[374008415,1753179052033,-152.082345,0.000247,7]
[374008416,1753179052043,-151.0,0.000247,7]
[374008417,1753179052053,-237.273312,0.000247,7]
[374008418,1753179052063,-151.0,0.000247,7]
[374008419,1753179052073,-151.0,0.000247,7]
[374008420,1753179052083,-151.422836,0.000247,7]
[374008421,1753179052093,-151.0,0.000247,7]
[374008422,1753179052103,-154.354293,0.000247,7]
[374008423,1753179052114,-151.0,0.000247,7]
[374008424,1753179052124,-151.0,0.000247,7]
[374008425,1753179052134,-151.0,0.000247,7]
[374008426,1753179052144,-151.0,0.000247,7]
[374008427,1753179052154,-151.0,0.000247,7]
[374008428,1753179052163,-8137.979636,0.000247,7]
[374008429,1753179052173,-8137.979636,0.000247,7]
[374008430,1753179052183,-12497.19,0.000247,7]
[374008431,1753179052192,-154.603585,0.000247,7]
[374008432,1753179052203,-930.70055,0.000247,7]
[374008433,1753179052212,-930.70055,0.000247,7]
[374008434,1753179052222,-154.9988728,0.00024712,2]
[374008435,1753179052232,-151.0,0.0002472,7]
[374008436,1753179052241,-1178.207867,0.0002472,5]
[374008437,1753179052251,-1137.75,0.00024724,3]
[374008438,1753179052261,-1000.0,0.0002474,5]
[374008439,1753179052270,-1000.0,0.0002476,5]
[374008440,1753179052279,-1000.0,0.0002478,5]
[374008441,1753179052289,-151.0,0.00024796,7]
[374008442,1753179052301,-2906.05818395,0.00024797,11]
[374008443,1753179052310,-2000.0,0.000248,2]
[374008444,1753179052320,-2000.0,0.000248,2]
[374008445,1753179052330,-151.0,0.000248,7]
[374008446,1753179052339,-151.0,0.000248,7]
[374008447,1753179052349,-151.0,0.000248,7]
[374008448,1753179052358,-204.564135,0.000248,7]
[374008449,1753179052368,-204.564135,0.000248,7]
[374008451,1753179052377,-298.804658,0.000248,7]
[374008453,1753179052387,-219.358495,0.000248,7]
[374008455,1753179052396,-151.0,0.000248,7]
[374008456,1753179052407,-151.0,0.000248,7]
[374008458,1753179052416,-151.0,0.000248,7]
[374008459,1753179052426,-154.089236,0.000248,7]
[374008460,1753179052436,-151.0,0.000248,7]
[374008461,1753179052445,-151.0,0.000248,7]
[374008462,1753179052456,-151.0,0.000248,7]
[374008464,1753179052466,-154.094237,0.000248,7]
[374008465,1753179052476,-8137.979636,0.000248,7]
[374008466,1753179052485,-8137.979636,0.000248,7]
[374008467,1753179052495,-151.0,0.000248,7]
[374008468,1753179052508,-151.0,0.000248,7]
[374008469,1753179052518,-76562.8406976,0.000248,2]
[374008470,1753179052534,-1000.0,0.000248,5]
[374008471,1753179052545,-199.240872,0.000248,7]
[374008472,1753179052555,-199.240872,0.000248,7]
[374008473,1753179052564,-151.0,0.000248,7]
[374008474,1753179052574,-151.0,0.000248,7]
[374008475,1753179052583,-930.70055,0.000248,7]
[374008476,1753179052592,-930.70055,0.000248,7]
[374008477,1753179052601,-151.0,0.000248,7]
[374008478,1753179052610,-151.0,0.000248,7]
[374008479,1753179052619,-151.0,0.000248,7]
[374008480,1753179052628,-151.465729,0.000248,7]
[374008481,1753179052638,-151.0,0.000248,7]
[374008482,1753179052647,-151.0,0.000248,7]
[374008483,1753179052656,-268.312637,0.000248,7]
[374008484,1753179052665,-257653.058969,0.000248,2]
[374008485,1753179052675,-155.366239,0.000248,7]
[374008486,1753179052685,-151.0,0.000248,7]
[374008487,1753179052694,-12159.45462487,0.00024814,2]
[374008488,1753179052705,-4476.35003949,0.00024814,2]
[374008489,1753179052714,-500.0,0.00024817,2]
[374008490,1753179052723,-151.0,0.00024817,2]
[374008491,1753179052732,-151.0,0.00024817,2]
[374008492,1753179052742,-177.98177811,0.00024817,2]
[374008493,1753179052751,-1137.75,0.00024824,4]
[374008494,1753179052760,-151.0,0.00024824,7]
[374008495,1753179052769,-151.0,0.00024824,7]
[374008496,1753179052779,-151.0,0.00024841,7]
[374008497,1753179052788,-4476.35003946,0.00024853,2]
[374008498,1753179052797,-200.63612521,0.00024873,2]
[374008499,1753179052806,-500.0,0.00024873,2]
[374008500,1753179052816,-4476.35003946,0.00024892,2]
[374008501,1753179052825,-206.0,0.000249,2]
[374008502,1753179052834,-207.0,0.000249,2]
[374008503,1753179052844,-206.0,0.000249,2]
[374008504,1753179052854,-151.0,0.000249,7]
[374008505,1753179052864,-151.0,0.000249,7]
[374008506,1753179052873,-151.0,0.000249,7]
[374008507,1753179052883,-151.0,0.000249,7]
[374008508,1753179052892,-200.296632,0.000249,7]
[374008509,1753179052902,-151.0,0.000249,7]
[374008510,1753179052912,-204.564135,0.000249,7]
[374008511,1753179052921,-204.564135,0.000249,7]
[374008512,1753179052931,-151.0,0.000249,7]
[374008513,1753179052941,-151.0,0.000249,7]
[374008514,1753179052953,-152.677723,0.000249,7]
[374008515,1753179052963,-151.0,0.000249,7]
[374008516,1753179052973,-152.175719,0.000249,7]
[374008517,1753179052983,-8137.979636,0.000249,7]